bitfinex-derivatives/quotes_BNBF0:USTF0_20250326
["timestamp","ask_amount","ask_price","bid_price","bid_amount"]
[1743000905929,1.22316337,625.32,624.86,0.32007169]
[1743000906130,1.314,625.33,624.86,0.32007169]
[1743000906131,1.22316337,625.31,624.86,0.32007169]
[1743000906431,1.22316337,625.3,624.86,0.32007169]
[1743000906627,1.22316337,625.29,624.86,0.32007169]
[1743000906826,1.22316337,625.28,624.86,0.32007169]
[1743000907026,1.22316337,625.27,624.86,0.32007169]
[1743000907228,1.22316337,625.26,624.86,0.32007169]
[1743000907431,1.22316337,625.25,624.86,0.32007169]
[1743000907634,1.22316337,625.24,624.86,0.32007169]
[1743000907827,1.22316337,625.23,624.86,0.32007169]
[1743000908033,1.22316337,625.22,624.86,0.32007169]
[1743000908227,1.22316337,625.21,624.86,0.32007169]
[1743000908432,1.22316337,625.2,624.86,0.32007169]
[1743000908635,0.90327279,625.22,624.86,0.32007169]
[1743000908636,1.22316337,625.19,624.86,0.32007169]
[1743000908836,2.12643616,625.18,624.86,0.32007169]
[1743000909135,1.22316337,625.17,624.86,0.32007169]
[1743000909434,1.22316337,625.16,624.86,0.32007169]
[1743000909634,0.90327279,625.18,624.86,0.32007169]
[1743000909835,1.22263193,625.17,624.86,0.32007169]
[1743000910034,1.22263193,625.16,624.86,0.32007169]
[1743000910235,1.314,625.33,624.86,0.32007169]
[1743000910439,1.22257757,625.32,624.86,0.32007169]
[1743000910638,1.22257757,625.31,624.86,0.32007169]
[1743000910835,1.22257757,625.3,624.86,0.32007169]
[1743000911032,1.22257757,625.29,624.86,0.32007169]
[1743000911230,1.22257757,625.28,624.86,0.32007169]
[1743000911435,2.13277134,625.27,624.86,0.32007169]
[1743000911631,1.22257757,625.26,624.86,0.32007169]
[1743000911834,1.22257757,625.25,624.86,0.32007169]
[1743000912034,2.13277134,625.24,624.86,0.32007169]
[1743000912238,1.22257757,625.23,624.86,0.32007169]
[1743000912539,2.13267731,625.22,624.86,0.32007169]
[1743000912740,1.22257757,625.21,624.86,0.32007169]
[1743000912939,1.22257757,625.2,624.86,0.32007169]
[1743000913132,1.22257757,625.19,624.86,0.32007169]
[1743000913334,1.22257757,625.18,624.86,0.32007169]
[1743000913535,1.22257757,625.17,624.86,0.32007169]
[1743000913739,1.22257757,625.16,624.86,0.32007169]
[1743000913938,1.22257757,625.15,624.86,0.32007169]
[1743000914141,1.22257757,625.14,624.86,0.32007169]
[1743000914441,0.656,625.16,624.86,0.32007169]
[1743000914740,1.22209311,625.15,624.86,0.32007169]
[1743000914941,1.22209311,625.14,624.86,0.32007169]
[1743000915141,0.90983701,625.15,624.86,0.32007169]
[1743000915341,1.22209718,625.14,624.86,0.32007169]
[1743000915542,0.90983701,625.15,624.86,0.32007169]
[1743000915742,0.656,625.16,624.86,0.32007169]
[1743000915940,1.2220082,625.15,624.86,0.32007169]
[1743000916141,1.22198853,625.14,624.86,0.32007169]
[1743000916443,0.656,625.16,624.86,0.32007169]
[1743000916643,2.13168226,625.15,624.86,0.32007169]
[1743000916944,1.22192078,625.14,624.86,0.32007169]
[1743000917141,0.90974447,625.15,624.86,0.32007169]
[1743000917344,0.474,625.13,624.86,0.32007169]
[1743000926747,0.696,625.12,624.86,0.32007169]
[1743000929951,0.656,625.11,624.86,0.32007169]
[1743000933552,1.13,625.11,624.86,0.32007169]
[1743000940556,1.13,625.11,624.77,1.1934325]
[1743000940959,1.13,625.11,624.86,1.1934325]
[1743000943260,1.13,625.11,624.88,1.1934325]
[1743000944862,1.13,625.11,624.85,1.1934325]
[1743000946960,1.13,625.11,624.86,1.1934325]
[1743000947165,0.474,625.11,624.86,1.1934325]
[1743000948564,0.474,625.11,624.91,1.1934325]
[1743000950267,0.474,625.11,624.68,1.1934325]
[1743000951563,0.874,625.1,624.68,1.1934325]
[1743000952669,0.874,625.1,624.7,1.1934325]
[1743000954567,0.874,625.1,617.22,9.55348039]
[1743000954568,0.874,625.1,624.72,1.1934325]
[1743000955471,0.474,625.09,624.72,1.1934325]
[1743000956069,0.474,625.09,624.73,0.26171485]
[1743000958365,0.474,625.09,624.74,0.26170406]
[1743000958565,0.474,625.09,624.73,0.26170406]
[1743000959670,0.474,625.09,624.72,1.1934325]
[1743000960273,0.474,625.09,624.95,1.1934325]
[1743000961068,0.9125999,625.08,624.95,1.1934325]
[1743000961471,1.22517731,625.07,624.95,1.1934325]
[1743000961771,1.22517731,625.06,624.95,1.1934325]
[1743000961967,1.22517731,625.05,624.95,1.1934325]
[1743000962170,1.22517731,625.04,624.95,1.1934325]
[1743000962371,0.9125999,625.05,624.95,1.1934325]
[1743000962574,1.22563062,625.04,624.95,1.1934325]
[1743000962774,0.9125999,625.03,624.95,1.1934325]
[1743000963177,0.9125999,625.03,624.42,1.1934325]
[1743000963476,0.474,625.09,624.43,0.58203133]
[1743000963674,0.474,625.09,624.44,0.5820262]
[1743000963869,0.474,625.09,624.45,0.58202107]
[1743000964072,0.474,625.09,624.46,0.58201594]
[1743000964273,0.474,625.09,624.47,0.58201082]
[1743000964473,0.474,625.09,624.48,0.58200569]
[1743000964670,0.474,625.09,624.49,0.26173923]
[1743000965379,0.474,625.09,624.71,1.1934325]
[1743000966877,0.474,625.09,624.48,0.32026646]
[1743000966878,0.474,625.09,624.75,1.1934325]
[1743000968581,0.474,625.09,624.83,1.1934325]
[1743000969773,0.658,625.08,624.83,1.1934325]
[1743000973087,2.13853529,625.07,624.83,1.1934325]
[1743000973282,1.22566081,625.06,624.61,1.1934325]
[1743000973479,1.22566081,625.05,624.61,1.1934325]
[1743000973680,0.91287448,625.05,624.61,1.1934325]
[1743000973885,1.22562321,625.04,624.61,1.1934325]
[1743000974189,0.91284795,625.04,624.61,1.1934325]
[1743000974388,2.13876053,625.03,624.61,1.1934325]
[1743000974687,0.91284795,625.03,624.61,1.1934325]
[1743000974886,0.658,625.08,624.61,1.1934325]
[1743000975082,1.22605069,625.07,624.61,1.1934325]
[1743000975283,2.13888139,625.06,624.61,1.1934325]
[1743000975593,1.22596932,625.05,624.57,1.1934325]
[1743000975782,1.22596932,625.04,624.57,1.1934325]
[1743000976184,0.658,625.08,624.57,1.1934325]
[1743000976888,0.658,625.08,624.61,1.1934325]
[1743000978187,1.497,625.08,624.61,1.1934325]
[1743000978783,1.497,625.08,624.55,1.1934325]
[1743000980089,1.497,625.08,624.49,1.1934325]
[1743000981895,1.497,625.08,624.48,0.32026646]
[1743000982094,1.972,625.08,624.48,0.32026646]
[1743000984697,1.972,625.08,624.49,0.26185678]
[1743000985496,1.972,625.08,624.48,0.32026646]
[1743000987402,1.972,625.08,624.49,0.26186278]
[1743000991300,1.972,625.08,624.48,0.32026646]
[1743000999305,1.972,625.08,624.49,0.26183298]
[1743001000108,1.972,625.08,624.48,0.32026646]
[1743001000406,1.972,625.08,624.49,0.26183637]
[1743001000603,1.972,625.08,624.48,0.32026646]
[1743001000907,1.972,625.08,624.49,0.26183816]
[1743001002404,1.972,625.08,624.48,0.32026646]
[1743001003608,1.972,625.08,624.49,0.26184912]
[1743001004406,1.972,625.08,624.48,0.32026646]
[1743001004709,1.972,625.08,624.49,0.26185325]
[1743001004906,1.972,625.08,624.48,0.32026646]
[1743001008206,1.972,625.08,624.49,0.26184591]
[1743001011211,1.972,625.08,624.57,1.1934325]
[1743001013313,1.972,625.08,624.58,1.1934325]
[1743001015118,1.972,625.08,624.57,1.1934325]
[1743001017219,1.22458307,625.07,624.57,1.1934325]
[1743001017420,1.22458307,625.06,624.59,1.1934325]
[1743001017621,1.22458307,625.05,624.59,1.1934325]
[1743001017920,1.22458307,625.04,624.59,1.1934325]
[1743001018121,1.22458307,625.03,624.59,1.1934325]
[1743001018314,1.22458307,625.02,624.59,1.1934325]
[1743001018518,1.22458307,625.01,624.59,1.1934325]
[1743001018715,1.22458307,625.0,624.59,1.1934325]
[1743001018915,1.2200065,624.99,624.59,1.1934325]
[1743001019116,1.2200065,624.98,624.59,1.1934325]
[1743001019315,1.2200065,624.97,624.59,1.1934325]
[1743001019515,1.2200065,624.96,624.59,1.1934325]
[1743001019720,2.13202912,624.95,624.58,1.1934325]
[1743001019919,1.2200065,624.94,624.58,1.1934325]
[1743001020119,2.13202912,624.93,624.58,1.1934325]
[1743001020320,1.22015231,624.92,624.58,1.1934325]
[1743001020514,0.475,624.92,624.58,1.1934325]
[1743001020718,0.659,624.91,624.58,1.1934325]
[1743001021520,1.027,624.9,624.58,1.1934325]
[1743001024122,1.027,624.9,624.59,0.26183656]
[1743001024324,1.027,624.9,624.58,1.1934325]
[1743001025423,1.027,624.9,624.67,1.1934325]
[1743001026924,1.027,624.9,624.68,1.1934325]
[1743001028830,1.027,624.9,624.66,1.1934325]
[1743001031427,1.027,624.9,624.57,1.1934325]
[1743001033927,1.027,624.9,624.48,0.32026646]
[1743001035732,1.22447302,624.89,624.48,0.32026646]
[1743001035934,1.22447302,624.88,624.48,0.32026646]
[1743001036132,2.13612773,624.87,624.48,0.32026646]
[1743001036432,2.13612773,624.86,624.48,0.32026646]
[1743001036733,1.22447302,624.85,624.48,0.32026646]
[1743001036941,1.22447302,624.84,624.48,0.32026646]
[1743001037129,1.22447302,624.83,624.48,0.32026646]
[1743001037329,0.91165471,624.84,624.48,0.32026646]
[1743001037532,1.22443261,624.83,624.48,0.32026646]
[1743001037727,1.22443261,624.82,624.48,0.32026646]
[1743001038034,0.91165471,624.83,624.48,0.32026646]
[1743001038333,2.13604988,624.82,624.48,0.32026646]
[1743001038531,0.91165471,624.82,624.48,0.32026646]
[1743001038732,1.22434795,624.81,624.48,0.32026646]
[1743001038933,1.027,624.9,624.48,0.32026646]
[1743001039129,1.2243971,624.89,624.48,0.32026646]
[1743001039329,1.2243971,624.88,624.48,0.32026646]
[1743001039534,2.13607048,624.87,624.48,0.32026646]
[1743001039736,1.2243971,624.86,624.49,0.2618637]
[1743001039936,1.027,624.9,624.49,0.2618637]
[1743001039937,2.13607048,624.85,624.49,0.2618637]
[1743001040133,1.7003971,624.84,624.49,0.2618637]
[1743001040340,1.2243971,624.83,624.49,0.2618637]
[1743001040539,0.476,624.84,624.49,0.2618637]
[1743001040734,1.2243712,624.83,624.49,0.2618637]
[1743001040939,0.476,624.84,624.49,0.2618637]
[1743001041138,1.22436908,624.83,624.49,0.2618637]
[1743001041338,1.22434309,624.82,624.49,0.2618637]
[1743001041536,0.476,624.84,624.59,1.1934325]
[1743001041741,1.22434084,624.83,624.59,1.1934325]
[1743001041936,1.22434084,624.82,624.59,1.1934325]
[1743001042141,0.476,624.84,624.59,1.1934325]
[1743001042343,1.22434086,624.83,624.59,1.1934325]
[1743001042541,0.476,624.84,624.59,1.1934325]
[1743001042738,1.22435632,624.83,624.59,1.1934325]
[1743001043043,0.476,624.84,624.59,1.1934325]
[1743001043341,1.22436624,624.83,624.59,1.1934325]
[1743001043539,0.476,624.84,624.59,1.1934325]
[1743001043738,1.22439074,624.83,624.59,1.1934325]
[1743001043939,0.476,624.84,624.59,1.1934325]
[1743001044140,0.476,624.84,624.48,0.32026646]
[1743001044141,1.22439771,624.83,624.56,1.1934325]
[1743001044336,0.476,624.84,624.56,1.1934325]
[1743001044539,1.22435811,624.83,624.56,1.1934325]
[1743001044740,1.22435811,624.82,624.56,1.1934325]
[1743001044941,1.22435811,624.81,624.56,1.1934325]
[1743001045137,0.476,624.84,624.56,1.1934325]
[1743001045346,1.22432046,624.83,624.56,1.1934325]
[1743001045643,1.22432046,624.82,624.56,1.1934325]
[1743001045843,0.476,624.84,624.56,1.1934325]
[1743001046045,1.2243249,624.83,624.56,1.1934325]
[1743001046245,1.2243249,624.82,624.56,1.1934325]
[1743001046444,0.476,624.84,624.56,1.1934325]
[1743001046644,0.91162271,624.83,624.56,1.1934325]
[1743001047046,0.91162271,624.83,624.48,0.32026646]
[1743001047047,0.91162271,624.83,624.51,1.1934325]
[1743001047746,0.66,624.83,624.51,1.1934325]
[1743001048946,0.66,624.83,624.5,1.1934325]
[1743001050747,0.66,624.83,624.48,0.32026646]
[1743001051347,0.66,624.83,624.17,1.1934325]
[1743001051951,1.7,624.83,624.17,1.1934325]
[1743001053055,1.7,624.83,624.1,1.1934325]
[1743001053256,1.7,624.83,624.11,0.58238911]
[1743001053449,1.7,624.83,624.12,0.58238398]
[1743001053652,0.91142873,624.82,624.13,0.26193279]
[1743001054255,0.91142873,624.82,624.14,0.32044092]
[1743001054455,0.91142873,624.82,624.15,0.26193279]
[1743001054656,0.91142873,624.81,624.16,0.32043065]
[1743001054856,0.91142873,624.81,624.17,0.26193279]
[1743001055157,0.91142873,624.8,624.28,1.1934325]
[1743001055357,0.91142873,624.8,624.29,0.26193279]
[1743001055751,1.7,624.83,624.29,0.26193279]
[1743001056153,1.7,624.83,624.3,0.26190247]
[1743001056354,1.7,624.83,624.31,0.26190247]
[1743001056559,0.91055348,624.82,624.31,0.26190247]
[1743001056755,0.91055348,624.82,624.32,0.26190247]
[1743001056955,0.91055348,624.82,624.29,0.26190247]
[1743001057155,0.91055348,624.81,624.3,0.26190247]
[1743001057357,1.7,624.83,624.18,0.32042039]
[1743001057358,1.7,624.83,624.32,1.1934325]
[1743001057558,1.7,624.83,624.33,0.26190247]
[1743001060456,1.7,624.83,624.48,1.1934325]
[1743001060654,1.7,624.83,624.49,0.26190247]
[1743001060859,1.7,624.83,624.5,0.26186334]
[1743001061054,1.7,624.83,624.51,0.26186334]
[1743001061359,1.7,624.83,624.52,0.26186334]
[1743001061559,1.7,624.83,624.49,0.26186334]
[1743001061759,1.7,624.83,624.48,1.1934325]
[1743001061955,1.7,624.83,624.49,0.26186478]
[1743001062259,1.7,624.83,624.48,1.1934325]
[1743001062461,1.7,624.83,624.49,0.26186176]
[1743001063061,2.176,624.83,624.47,0.26186176]
[1743001063261,2.176,624.83,624.48,0.26186176]
[1743001063561,2.176,624.83,624.49,0.26186176]
[1743001063756,2.176,624.83,624.47,0.26186176]
[1743001064355,0.91055342,624.82,624.46,1.1934325]
[1743001065161,0.91055342,624.81,624.46,1.1934325]
[1743001065353,0.91055342,624.81,624.27,1.19162947]
[1743001065354,2.176,624.83,624.43,1.1934325]
[1743001065959,0.91049529,624.82,624.43,1.1934325]
[1743001066260,0.91049529,624.81,624.43,1.1934325]
[1743001066856,0.91049529,624.8,624.43,1.1934325]
[1743001067161,0.91049529,624.79,624.43,1.1934325]
[1743001067858,0.91049529,624.78,624.43,1.1934325]
[1743001068262,0.91049529,624.77,624.43,1.1934325]
[1743001068463,0.91049529,624.77,624.3,1.1934325]
[1743001068661,1.516,624.83,624.3,1.1934325]
[1743001068862,2.13466957,624.82,624.3,1.1934325]
[1743001069062,1.22431566,624.81,624.3,1.1934325]
[1743001069357,1.22431566,624.8,624.3,1.1934325]
[1743001069562,2.13466957,624.79,624.3,1.1934325]
[1743001069762,0.91035391,624.79,624.3,1.1934325]
[1743001069960,2.79287256,624.78,624.3,1.1934325]
[1743001070157,1.57035391,624.78,624.3,1.1934325]
[1743001070762,0.66,624.78,624.3,1.1934325]
[1743001071066,0.66,624.78,624.33,1.1934325]
[1743001072559,0.66,624.78,624.36,1.1934325]
[1743001074760,1.22216526,624.77,624.36,1.1934325]
[1743001074962,0.66,624.78,624.36,1.1934325]
[1743001075161,0.66,624.78,624.38,1.1934325]
[1743001076666,3.08899903,624.77,624.38,1.1934325]
[1743001076965,1.22201095,624.76,624.38,1.1934325]
[1743001077165,1.22201095,624.75,624.38,1.1934325]
[1743001077463,1.86697121,624.77,624.18,0.32042039]
[1743001077464,1.22201095,624.74,624.4,1.1934325]
[1743001077659,1.2218553,624.73,624.4,1.1934325]
[1743001077863,1.22181746,624.72,624.4,1.1934325]
[1743001078063,1.22181746,624.71,624.4,1.1934325]
[1743001078264,1.22181746,624.7,624.4,1.1934325]
[1743001078465,0.957,624.77,624.4,1.1934325]
[1743001078661,1.22157834,624.76,624.4,1.1934325]
[1743001078863,2.13123073,624.75,624.4,1.1934325]
[1743001079161,1.22157834,624.74,624.4,1.1934325]
[1743001079362,1.22157834,624.73,624.4,1.1934325]
[1743001079562,1.22157834,624.72,624.4,1.1934325]
[1743001079763,1.22157834,624.71,624.4,1.1934325]
[1743001080059,0.957,624.77,624.4,1.1934325]
[1743001080060,1.22157834,624.7,624.4,1.1934325]
[1743001080267,0.957,624.77,624.35,1.1934325]
[1743001080459,1.22111201,624.76,624.35,1.1934325]
[1743001080663,2.13042258,624.75,624.35,1.1934325]
[1743001080863,1.22111201,624.74,624.35,1.1934325]
[1743001081059,2.13042258,624.73,624.36,0.26195464]
[1743001081267,1.22111201,624.72,624.35,1.1934325]
[1743001081461,1.22111201,624.71,624.35,1.1934325]
[1743001081660,1.22111201,624.7,624.36,0.2619527]
[1743001081865,0.957,624.77,624.36,0.2619527]
[1743001082067,1.2208596,624.76,624.36,0.2619527]
[1743001082267,2.12993791,624.75,624.35,1.1934325]
[1743001082468,1.2208596,624.74,624.35,1.1934325]
[1743001082664,1.2208596,624.73,624.35,1.1934325]
[1743001082864,1.2208596,624.72,624.35,1.1934325]
[1743001083066,1.2208596,624.71,624.35,1.1934325]
[1743001083269,0.957,624.77,624.35,1.1934325]
[1743001083666,1.22028743,624.76,624.35,1.1934325]
[1743001083970,1.22028743,624.75,624.38,1.1934325]
[1743001084170,1.22028743,624.74,624.38,1.1934325]
[1743001084469,1.22028743,624.73,624.38,1.1934325]
[1743001084669,1.22028743,624.72,624.38,1.1934325]
[1743001084867,1.22028743,624.71,624.38,1.1934325]
[1743001085063,0.957,624.77,624.38,1.1934325]
[1743001085265,1.21987326,624.76,624.38,1.1934325]
[1743001085564,1.21987326,624.75,624.38,1.1934325]
[1743001085770,0.957,624.77,624.38,1.1934325]
[1743001085966,0.90832869,624.75,624.38,1.1934325]
[1743001086162,1.2197891,624.74,624.38,1.1934325]
[1743001086370,1.2197891,624.73,624.38,1.1934325]
[1743001086568,1.2197891,624.72,624.29,1.1934325]
[1743001086768,1.2197891,624.71,624.29,1.1934325]
[1743001087069,0.957,624.77,624.29,1.1934325]
[1743001087371,2.12806773,624.76,624.29,1.1934325]
[1743001087569,1.21975689,624.75,624.29,1.1934325]
[1743001087770,1.21976503,624.74,624.29,1.1934325]
[1743001088070,2.12807587,624.73,624.29,1.1934325]
[1743001088264,0.90831084,624.73,624.29,1.1934325]
[1743001088463,1.2198355,624.72,624.29,1.1934325]
[1743001088668,0.66,624.78,624.29,1.1934325]
[1743001088870,1.21981386,624.77,624.29,1.1934325]
[1743001089066,1.21981386,624.76,624.26,1.1934325]
[1743001089371,2.12816487,624.75,624.26,1.1934325]
[1743001089572,2.12816487,624.74,624.26,1.1934325]
[1743001089765,0.90835101,624.74,624.26,1.1934325]
[1743001090165,0.476,624.73,624.26,1.1934325]
[1743001090570,0.476,624.73,624.27,0.26192207]
[1743001091274,0.66,624.72,624.27,0.26192207]
[1743001092673,0.66,624.72,624.38,1.1934325]
[1743001092870,0.66,624.72,624.39,0.26192207]
[1743001095470,0.66,624.72,624.45,1.1934325]
[1743001095673,0.66,624.72,624.46,0.26192207]
[1743001096676,0.66,624.71,624.46,0.26192207]
[1743001097776,0.66,624.71,624.56,1.1934325]
[1743001098372,0.66,624.71,624.57,0.26183368]
[1743001098578,0.66,624.71,624.56,1.1934325]
[1743001100680,0.66,624.71,624.4,0.32030749]
[1743001100681,0.66,624.71,624.57,0.26182956]
[1743001100879,0.66,624.71,624.51,0.26182956]
[1743001101082,0.66,624.71,624.52,0.26182956]
[1743001101380,0.66,624.71,624.5,1.1934325]
[1743001101381,0.66,624.71,624.53,0.26183682]
[1743001101581,0.66,624.71,624.54,0.26183682]
[1743001101776,0.66,624.71,624.55,0.26183682]
[1743001101977,0.66,624.71,624.56,0.26183682]
[1743001102181,0.66,624.71,624.57,0.26183682]
[1743001102377,0.66,624.71,624.51,0.26183682]
[1743001102578,0.66,624.71,624.5,1.1934325]
[1743001102981,0.66,624.71,624.51,0.2618281]
[1743001103583,0.66,624.71,624.55,1.1934325]
[1743001105279,0.66,624.71,624.44,1.1934325]
[1743001105585,0.66,624.71,624.45,0.58210751]
[1743001105785,0.66,624.71,624.46,0.26182567]
[1743001106084,0.66,624.71,624.47,0.58207172]
[1743001106281,0.66,624.71,624.48,0.58206659]
[1743001106585,0.66,624.71,624.49,0.58206146]
[1743001106780,0.66,624.71,624.5,0.58205633]
[1743001107083,0.66,624.71,624.5,0.3202562]
[1743001107784,0.66,624.71,624.51,1.1934325]
[1743001109582,0.66,624.72,624.5,0.3202562]
[1743001115386,0.66,624.72,624.51,0.26178352]
[1743001119890,0.66,624.72,624.5,0.3202562]
[1743001120088,0.66,624.72,624.51,0.26178478]
[1743001120293,0.661,624.75,624.51,0.26178478]
[1743001121693,0.661,624.75,624.52,0.26178354]
[1743001121892,0.661,624.75,624.53,0.26178354]
[1743001122092,0.661,624.75,624.43,0.26178354]
[1743001122393,0.661,624.75,624.48,1.1934325]
[1743001122591,0.661,624.75,624.49,0.26178354]
[1743001122592,0.754,624.74,624.49,0.26178354]
[1743001123295,0.754,624.74,624.48,1.1934325]
[1743001123595,0.754,624.74,624.49,0.26178166]
[1743001124490,0.754,624.74,624.5,1.1934325]
[1743001124688,0.754,624.74,624.51,0.26178166]
[1743001126295,0.754,624.74,624.52,0.26176961]
[1743001126491,0.754,624.74,624.51,0.26176961]
[1743001126695,0.754,624.74,624.52,0.26176961]
[1743001126997,0.754,624.74,624.66,1.1934325]
[1743001127196,0.754,624.74,624.67,0.26176961]
[1743001127799,0.754,624.74,624.66,1.1934325]
[1743001127997,0.754,624.74,624.67,0.26177136]
[1743001129001,0.754,624.74,624.68,1.1934325]
[1743001130700,0.754,624.74,624.69,0.26176918]
[1743001130904,0.754,624.74,624.71,1.1934325]
[1743001131098,0.754,624.74,624.72,0.26176918]
[1743001133207,0.754,624.74,624.71,1.1934325]
[1743001133607,0.754,624.74,624.22,1.43525567]
[1743001133608,0.754,624.74,624.6,1.19162947]
[1743001133908,0.754,624.74,624.61,0.26176243]
[1743001134708,0.661,624.75,624.61,0.26176243]
[1743001136305,0.661,624.75,624.73,1.1964422]
[1743001139510,0.476,624.76,624.73,1.1964422]
[1743001141312,0.476,624.76,624.72,1.1964422]
[1743001143710,0.476,624.76,624.69,1.1964422]
[1743001145515,0.661,624.97,624.69,1.1964422]
[1743001146513,0.661,624.97,624.7,1.1964422]
[1743001148920,0.477,624.96,624.7,1.1964422]
[1743001151625,0.477,624.96,624.69,1.1964422]
[1743001154220,0.477,624.96,624.5,1.1964422]
[1743001156226,0.477,624.96,624.43,1.1964422]
[1743001158927,0.477,624.96,623.7,2.44192805]
[1743001158928,0.477,624.96,624.37,1.1964422]
[1743001161632,0.477,624.96,624.2,1.1964422]
[1743001161929,0.477,624.96,624.21,0.58227774]
[1743001162128,0.477,624.96,624.22,0.5822726]
[1743001162332,0.477,624.96,624.23,0.58226747]
[1743001162529,0.477,624.96,624.24,0.58226234]
[1743001162831,0.477,624.96,624.25,0.32038446]
[1743001163732,0.477,624.96,624.26,0.26186288]
[1743001163929,0.477,624.96,624.27,0.32037419]
[1743001164330,0.477,624.96,624.28,0.26185188]
[1743001164536,0.477,624.96,624.29,0.32036393]
[1743001169136,0.477,624.96,624.3,0.26186484]
[1743001169337,0.477,624.96,624.31,0.32035367]
[1743001169535,0.69,624.95,624.31,0.32035367]
[1743001169836,0.69,624.95,624.32,0.26186666]
[1743001170237,1.351,624.95,624.32,0.26186666]
[1743001170532,1.351,624.95,624.31,0.32035367]
[1743001171036,1.351,624.95,624.32,0.26186672]
[1743001172438,1.21937485,624.94,624.32,0.26186672]
[1743001172738,1.22316412,624.93,624.32,0.26186672]
[1743001172938,1.22316412,624.92,624.32,0.26186672]
[1743001173138,1.22316412,624.91,624.32,0.26186672]
[1743001173339,1.22316412,624.9,624.32,0.26186672]
[1743001173540,1.22316412,624.89,624.38,1.1964422]
[1743001173739,1.22316412,624.88,624.38,1.1964422]
[1743001173933,0.90779466,624.89,624.38,1.1964422]
[1743001174135,1.22311373,624.88,624.38,1.1964422]
[1743001174334,0.90779466,624.88,624.38,1.1964422]
[1743001174732,1.351,624.95,624.38,1.1964422]
[1743001174933,1.22307946,624.94,624.38,1.1964422]
[1743001175134,2.13447304,624.93,624.38,1.1964422]
[1743001175337,1.22307946,624.92,624.38,1.1964422]
[1743001175534,2.13447304,624.91,624.38,1.1964422]
[1743001175738,1.22307946,624.9,624.38,1.1964422]
[1743001175935,1.22307946,624.89,624.38,1.1964422]
[1743001176242,0.91139358,624.88,624.42,1.1964422]
[1743001176637,1.351,624.95,624.42,1.1964422]
[1743001176837,1.22297654,624.94,624.42,1.1964422]
[1743001177042,1.22297654,624.93,624.42,1.1964422]
[1743001177239,1.22297654,624.92,624.43,0.26187129]
[1743001177443,1.22297654,624.91,624.43,0.26187129]
[1743001177744,2.13426813,624.9,624.43,0.26187129]
[1743001177944,2.13426813,624.89,624.43,0.26187129]
[1743001178146,0.91129159,624.89,624.42,1.1964422]
[1743001178444,0.91129159,624.89,624.43,0.26187043]
[1743001178747,1.351,624.95,624.43,0.26187043]
[1743001179040,1.22290104,624.94,624.43,0.26187043]
[1743001179247,1.22290104,624.93,624.43,0.26187043]
[1743001179445,1.22290104,624.92,624.44,0.26187043]
[1743001179642,2.13413479,624.91,624.41,1.1964422]
[1743001179848,1.22290104,624.9,624.41,1.1964422]
[1743001180148,0.91123375,624.91,624.41,1.1964422]
[1743001180447,1.351,624.95,624.41,1.1964422]
[1743001180647,2.13420397,624.94,624.41,1.1964422]
[1743001180847,1.22294253,624.93,624.41,1.1964422]
[1743001181047,0.91126144,624.93,624.41,1.1964422]
[1743001181247,0.91126144,624.93,624.31,0.32035367]
[1743001181248,0.91126144,624.93,624.42,1.1964422]
[1743001181449,1.351,624.95,624.42,1.1964422]
[1743001181642,1.22299859,624.94,624.42,1.1964422]
[1743001181843,0.661,624.95,624.42,1.1964422]
[1743001182143,2.13429508,624.94,624.42,1.1964422]
[1743001182347,1.22297164,624.93,624.42,1.1964422]
[1743001182549,0.477,624.92,624.42,1.1964422]
[1743001183450,0.477,624.92,624.45,1.1964422]
[1743001183649,0.91133315,624.91,624.45,1.1964422]
[1743001184444,0.925,624.9,624.45,1.1964422]
[1743001185351,0.925,624.9,624.49,1.1964422]
[1743001185750,1.57342963,624.89,624.49,1.1964422]
[1743001186253,0.662,624.89,624.49,1.1964422]
[1743001188752,0.662,624.89,624.31,0.32035367]
[1743001188753,0.662,624.89,624.58,1.1964422]
[1743001191954,0.662,624.89,624.57,1.1964422]
[1743001194255,0.662,624.89,624.63,1.1964422]
[1743001196458,0.662,624.89,624.7,1.1964422]
[1743001198964,0.662,624.89,624.55,1.1964422]
[1743001200665,0.662,624.89,624.56,0.26178498]
[1743001201268,0.662,624.89,624.48,1.1964422]
[1743001201469,0.662,624.89,624.49,0.26178861]
[1743001203266,0.662,624.89,624.58,1.1964422]